Workbook

Sheet 1. Project Details
A1: “Re-certification of Green Mark Buildings” is a process for qualified Green Mark-certified buildings to be recognised for sustained performance in the area of energy and water efficiency, operations and management, and indoor environment quality. By satisfying a checklist of performance metrics, such buildings can be re-certified to its most recent Green Mark scheme and rating. Eligibility 1. The building has not been retrofitted since its last Green Mark assessment 2. It intends to retain the same Green Mark scheme and rating 3. It was certified with the following schemes: a. Green Mark for New Non-residential Buildings (GM-NRB) b. Green Mark for Existing Non-residential Buildings (GM-ENRB) c. Green Mark for Healthcare Facilities (GM-HC)
A2: Applicant is only required to provide entry for coloured (not white nor grey) cells in the following tabs: 1. Project Details 2. OSE / Energy Audit Report 4. Energy Utilisation Index 5. Water Consumption 6. Energy & Water Improvement Plan 7. Cooling Tower CoC 8. Sustainable Operation & Management 9. IEQ The assessor will schedule a visit to the site to verify the chiller plant temperature sensors and a walk-through of the facility.
A5: Re-certification of Green Mark Buildings
A8: Project Details
A9: GM Reference No | C9: GMXXXX/7/2017
A10: Building name | C10: A Certain Building (Re-certification)
A11: Address | C11: 800 Central Road Singapore 923880
A12: Building Owner | C12: XYZ Investment Pte Ltd
A13: Consultant Firm / ESCO | C13: Blue Energy Consultants Pte Ltd
A14: Green Mark Standard | C14: Green Mark for Existing Non-Residential Buildings (Version 3)
A15: Previous GM Reference No. | C15: GMXXX/9/2015
A16: Date of last GM Letter Of Award | C16: 28 Feb 2015
A17: Previous GM Rating | C17: GoldPLUS
A18: Previous Green Mark Score | C18: 88 (after verification)
A19: Date of Current GM Assessment | C19: 15/2/2018
A20: Green Mark Assessors (Lead) | C20: John Doe
A21: Green Mark Assessors (co) | C21: Mary Ann
A23: Building Details:
A24: Type of Building | C24: Hotel
A25: GFA (m2) | C25: 45000
A26: Carpark Area (m2) | C26: 900
A27: Air-conditioned Area (m2) | C27: 42000
A29: Building Key Performance Data:
A30: Type of A/C systems | C30: Water-cooled
A31: Building cooling load (RT) | C31: 900
A32: Chiller configuration (e.g. 3 nos. x 500RT) | C32: 2 x 550RT (operating; 1 at night) + 1 x 600 (standby)
A33: Cooling load / aircon area (W/m2) | C33: =C31*3.517*1000/C27 -> 75.36428571
A34: Air-conditioning system efficiency (kW/RT) | C34: 0.65
A35: Total Building Energy consumption (kWh/yr) | C35: ='4. EUI'!B53 -> 1093303
A36: EUI (kWh/m2/yr) | C36: ='4. EUI'!D61 -> 24.29562222

Sheet 1-1. Verification
A1: This tab is to be filled by BCA Assessors and is only required if there are green features committed in the previous assessment. Delete this tab if verification is not appilicable.
A3: Verification of Committed Green Features
A5: Project Details
A6: Previous GM Reference No. | D6: ='1. Project Details'!C15 -> GMXXX/9/2015
A7: Date of last GM Letter Of Award | D7: ='1. Project Details'!C16 -> 28 Feb 2015
A8: Green Mark Standard | D8: ='1. Project Details'!C14 -> Green Mark for Existing Non-Residential Buildings (Version 3)
A9: Previous GM Rating | D9: ='1. Project Details'!C17 -> GoldPLUS
A10: Verification Officer | D10: Mary Dole
A11: Use "Insert..Object..Create from File" command if macro execution is disabled
A13: The list of commitments as listed in the attached Commitment Letter are
A14: GM Criteria | B14: Description | C14: Pre-requisite | D14: Implemented | E14: Variance, if any | F14: Attachment e.g. photo, report | G14: Impact
A15: e.g. 1-2d | B15: Provision of permanent measuring instruments for monitoring of watercooled chilled-water plant | C15: Y | D15: Y | E15: - | G15: -
A16: e.g. 2-4 | B16: Implementation of Water Efficiency Improvement Plan | C16: N | D16: N | E16: - | G16: -1
A20: Verification Results
A22: Category | C22: Points Scored (during assessment) | E22: Final Points Scored (after verification)
A23: Part 1 - Energy Efficiency | C23: 60.06 | E23: 60.06
A24: Part 2 - Water Efficiency | C24: 13 | E24: 13
A25: Part 3 – Sustainable Operation & Management | C25: 25.25 | E25: 25.25
A26: Part 4 – Indoor Environment Quality | C26: 16 | E26: 16
A27: Part 5 – Other Green Features | C27: 10 | E27: 9
B28: Total | C28: =SUM(C23:C27) -> 124.31 | E28: =SUM(E23:E27) -> 123.31
A30: Project Green Mark rating after verification: Platinum þ Goldplus r Gold r Certified r

Sheet 2. OSE Report
A1: Summary of OSE/Energy Audit Report | C1: Use "Insert..Object..Create from File" command if macro execution is disabled
A3: Daily Average Reading | B3: Period | D3: Unit
B4: Day Time^ | C4: Night Time~
A5: Cooling Load | D5: Rt
A6: Cooling Load Density (Air-con area) | D6: m2/Rt
A7: Power Consumption | D7: kW
A8: Chilled water supply temperature | D8: oC
A9: Chilled water return temperature | D9: oC
A10: Chilled water delta T | D10: oC
A11: Chilled water flow rate | D11: l/s
A12: Chilled water flow rate vs cooling load | D12: USgpm/Rt
A13: *Condenser heat rejection | D13: HRt
A14: *Condenser water supply temperature | D14: oC
A15: *Condenser water return temperature | D15: oC
A16: *Condenser water delta T | D16: oC
A17: *Condenser water flow rate | D17: l/s
A18: *Condenser water flow rate vs cooling load | D18: USgpm/Rt
A19: Chiller(s) efficiency | D19: kW/Rt
A20: Chilled water pump(s) efficiency | D20: kW/Rt
A21: *Condenser water pump(s) efficiency | D21: kW/Rt
A22: *Cooling tower(s) efficiency | D22: kW/Rt
A23: Overall chiller plant efficiency | D23: kW/Rt
A25: *Not applicable to air-cooled Chilled Water Plant
A26: ~For hotels and other developments with 24-hour operations only, night time shall refer to the period from 11pm-7am
A27: ^ For hotels and other developments with 24-hour operations, day-time shall refer to the period from 7am–11pm; for all other developments, daytime shall refer to the normal operating hours stipulated in clause 6.1.4
A28: Summary of Heat Balance
B29: Quantity | C29: Unit | D29: Formula
A30: Sum of total electrical energy used | C30: kWh | D30: (A)
A31: Sum of total cooling produced | C31: Rth | D31: (B)
A32: Sum of total heat rejected | C32: Rth | D32: (C)
A33: Chiller Plant Efficiency | C33: kW/Rt | D33: (A) / (B)
A34: Total Heat Balance Data Count | C34: - | D34: (D)
A35: Data Count > + 5% error | C35: - | D35: (E)
A36: Data Count < - 5% error | C36: - | D36: (F)
A37: Data Count within ±5% error | C37: - | D37: (G) = (D) – (E) – (F)
A38: % Heat Balance within ±5% error | C38: % | D38: 100 x (G) / (D)

Sheet 3. Temperature Sensors
A1: Temperature Sensors Check (This tab is to be filled by BCA Assessors)
A3: Date: | B3: 2018-02-15
A5: CHWS Temperature (°C) | F5: CHWR Temperature (°C)
A6: Time | B6: BCA | C6: BMS | D6: ABS Diff | F6: Time | G6: BCA | H6: BMS | I6: ABS Diff
D7: =ABS(B7-C7) -> 0 | I7: =ABS(G7-H7) -> 0
D8: 0 | I8: =ABS(G8-H8) -> 0
D9: 0 | I9: 0
D10: 0 | I10: 0
D11: 0 | I11: 0
D12: 0 | I12: 0
D13: 0 | I13: 0
D14: 0 | I14: 0
D15: 0 | I15: 0
D16: 0 | I16: 0
D17: 0 | I17: 0
D18: 0 | I18: 0
D19: 0 | I19: 0
D20: 0 | I20: 0
D21: 0 | I21: 0
D22: 0 | I22: 0
D23: 0 | I23: 0
D24: 0 | I24: 0
D25: 0 | I25: 0
D26: 0 | I26: 0
C27: Average | D27: =AVERAGE(D7:D26) -> 0 | H27: Average | I27: =AVERAGE(I7:I26) -> 0
A43: CDWS Temperature (°C) | F43: CDWR Temperature (°C)
A44: Time | B44: BCA | C44: BMS | D44: ABS Diff | F44: Time | G44: BCA | H44: BMS | I44: ABS Diff
D45: =ABS(B45-C45) -> 0 | I45: =ABS(G45-H45) -> 0
D46: 0 | I46: =ABS(G46-H46) -> 0
D47: 0 | I47: 0
D48: 0 | I48: 0
D49: 0 | I49: 0
D50: 0 | I50: 0
D51: 0 | I51: 0
D52: 0 | I52: 0
D53: 0 | I53: 0
D54: 0 | I54: 0
D55: 0 | I55: 0
D56: 0 | I56: 0
D57: 0 | I57: 0
D58: 0 | I58: 0
D59: 0 | I59: 0
D60: 0 | I60: 0
D61: 0 | I61: 0
D62: 0 | I62: 0
D63: 0 | I63: 0
D64: 0 | I64: 0
C65: Average | D65: =AVERAGE(D45:D64) -> 0 | H65: Average | I65: =AVERAGE(I45:I64) -> 0

Sheet 4. EUI
A1: Energy Utility Index (3 Years Electricity Bill)
A3: Energy Consumption (1st Year, Baseline)
A5: Month | B5: Total Consumption (kWh) | C5: Tenant's Consumption (kWh) | D5: Landlord's Consumption (kWh)
A6: e.g. Jun'14 | B6: 1228556 | C6: 13401 | D6: 1215155
A18: Yearly Consumption | B18: =SUM(B6:B17) -> 1228556 | C18: =SUM(C6:C17) -> 13401 | D18: 1215155
A20: Energy Consumption (2nd Year)
A22: Month | B22: Total Consumption (kWh) | C22: Tenant's Consumption (kWh) | D22: Landlord's Consumption (kWh)
A23: e.g. Jun'15 | B23: 1096746 | C23: 9944 | D23: 1086802
A35: Yearly Consumption | B35: =SUM(B23:B34) -> 1096746 | C35: =SUM(C23:C34) -> 9944 | D35: 1086802
A36: Baseline Improvement | B36: =(B18-B35)/B18 -> 0.1072885566
A38: Energy Consumption (3rd Year)
A40: Month | B40: Total Consumption (kWh) | C40: Tenant's Consumption (kWh) | D40: Landlord's Consumption (kWh)
A41: e.g. Jun'16 | B41: 1093303 | C41: 11049 | D41: 1082254
A53: Yearly Consumption | B53: =SUM(B41:B52) -> 1093303 | C53: =SUM(C41:C52) -> 11049 | D53: 1082254
A54: Baseline Improvement | B54: =(B18-B53)/B18 -> 0.1100910337
A56: Computation of Energy Untility Index (EUI) based on area (kW/m²/year)
B58: Year 1 | C58: Year 2 | D58: Year 3
A59: Total Building Energy Consumption (kWh) | B59: =B18 -> 1228556 | C59: =B35 -> 1096746 | D59: =B53 -> 1093303
A60: Gross Floor Area,m² (GFA) | B60: ='1. Project Details'!C25 -> 45000
A61: Energy Utility Index, EUI | B61: =B59/B60 -> 27.30124444 | C61: =C59/B60 -> 24.37213333 | D61: =D59/B60 -> 24.29562222
A62: Deviation | B62: Baseline | C62: =(C61-B61)/B61 -> -0.1072885566 | D62: =(D61-B61)/B61 -> -0.1100910337
A63: Reasons, if deviation > ± 5% | B63: -

Sheet 5. Water Consumption
A1: Water Efficiency (3 Years Building Water Bill)
A3: Water Consumption (1st Year, Baseline)
A5: Month | B5: Total Consumption (m³) | C5: Tenant's Consumption (m³) | D5: Landlord's Consumption (m³)
A6: e.g. Jun'14 | B6: 12256.1 | C6: 376 | D6: 11880.1
A18: Yearly Consumption | B18: =SUM(B6:B17) -> 12256.1 | C18: =SUM(C6:C17) -> 376 | D18: 11880.1
A20: Water Consumption (2nd Year)
A22: Month | B22: Total Consumption (m³) | C22: Tenant's Consumption (m³) | D22: Landlord's Consumption (m³)
A23: e.g. Jun'15 | B23: 11682.2 | C23: 603 | D23: 11079.2
A35: Yearly Consumption | B35: =SUM(B23:B34) -> 11682.2 | C35: =SUM(C23:C34) -> 603 | D35: 11079.2
A36: Baseline Improvement | B36: =(B18-B35)/B18 -> 0.04682566232
A38: Water Consumption (3rd Year)
A40: Month | B40: Total Consumption (m³) | C40: Tenant's Consumption (m³) | D40: Landlord's Consumption (m³)
A41: e.g. Jun'16 | B41: 10688.1 | C41: 711 | D41: 9977.1
A53: Yearly Consumption | B53: =SUM(B41:B52) -> 10688.1 | C53: =SUM(C41:C52) -> 711 | D53: 9977.1
A54: Baseline Improvement | B54: =(B18-B53)/B18 -> 0.1279362929
B56: Year 1 | C56: Year 2 | D56: Year 3
A57: Total Building Water Consumption (m3) | B57: =B18 -> 12256.1 | C57: =B35 -> 11682.2 | D57: =B53 -> 10688.1
A58: Deviation | B58: Baseline | C58: =(C57-B57)/B57 -> -0.04682566232 | D58: =(D57-B57)/B57 -> -0.1279362929
A59: Reasons, if deviation > ± 5% | B59: -

Sheet 6. Energy & Water Improve Plan
A1: Energy and Water Improvement Plan
A3: Submission of plans showing intent, measures and implementation strategies to achieve improvement target set against current performance over the next 3 years.
A5: 3 Years Energy Efficiency Improvement Target: | C5: % | E5: Use "Insert..Object..Create from File" command if macro execution is disabled
A6: Assessor's comment:
A8: 3 Years Water Efficiency Improvement Target: | C8: % | E8: Use "Insert..Object..Create from File" command if macro execution is disabled
A9: Assessor's comment:

Sheet 7. CoC
A1: Cycles of Concentration (for water-cooled chiller plant only)
A3: Submission of cooling tower’s water treatment reports showing 7 or better cycles of concentration.
A5: Cycle of Concentration: | C5: Cycles | E5: Use "Insert..Object..Create from File" command if macro execution is disabled
A6: Assessor's comment:

Sheet 8. Sustainable OM
A1: Sustainable Operations & Management
A3: Occupant Satisfaction Survey
A5: A post-occupancy evaluation is a survey to gauge occupants’ satisfaction on indoor environmental quality and identify corrective actions that will enhance comfort. Please ask your assessor for a survey weblink for this project, which may then be disseminated to occupants. Results will be tabulated automatically, so that FM may view them and record corrective actions taken. Alternatively, you may use the attached questionaire from Annex B of GM ENRB:2017, and tabulate the response with the attached result template. | G5: Use "Insert..Object..Create from File" command if macro execution is disabled
A6: Assessor's comment:
A8: Environmental Policy
A10: Environmental Policy that reflects sustainability goals set for the building and its systems | G10: Use "Insert..Object..Create from File" command if macro execution is disabled
A11: Assessor's comment:
A13: Waste Recycling Reports
A15: Name of waste recycling company: | G15: Use "Insert..Object..Create from File" command if macro execution is disabled
A16: Assessor's comment:

Sheet 9 IEQ
A1: Indoor Environment Quality
A3: IAQ Audit
A5: Submission of latest IAQ audit report performed by SAC accredited consultants/companies, stating major areas of concern (e.g. mold issues).
A7: Test Report Number: | D7: Use "Insert..Object..Create from File" command if macro execution is disabled
A8: Date Audit was Conducted:
A9: Name of SAC-Accredited Lab:
A10: Assessor's comment:
A12: Lighting Lux Level
A14: Submission of lighting lux levels for various areas, complying with SS531 or CP38.
A16: Test Report Number: | D16: Use "Insert..Object..Create from File" command if macro execution is disabled
A17: Measurements taken by:
A18: Assessor's comment:
A20: Noise Level
A22: Submission of noise levels for internal areas, complying with SS553 or CP13.
A24: Test Report Number: | D24: Use "Insert..Object..Create from File" command if macro execution is disabled
A25: Measurements taken by:
A26: Assessor's comment:
